bitfinex/quotes_ETHUSD_20251012
["timestamp","ask_amount","ask_price","bid_price","bid_amount"]
[1760232369028,2.67481219,3738.6,3737.8,0.6336]
[1760232369224,0.34055025,3740.1,3738.0,0.6336]
[1760232369554,1.92,3738.8,3738.0,0.6336]
[1760232369864,0.001,3739.8,3738.2,0.6336]
[1760232370022,2.67435441,3739.3,3738.4,0.6336]
[1760232370215,0.001,3739.8,3738.6,0.6336]
[1760232370421,2.67421939,3739.5,3738.6,0.6336]
[1760232370759,0.001,3739.8,3738.6,0.6336]
[1760232370926,2.6740926,3739.6,3738.5,0.4653]
[1760232371127,1.92,3738.6,3737.9,0.4653]
[1760232371446,1.92,3738.3,3737.9,0.4653]
[1760232371648,1.92,3738.3,3737.3,0.4653]
[1760232371945,2.67524471,3739.4,3737.3,0.4653]
[1760232371946,2.67520785,3738.1,3737.3,0.4653]
[1760232372148,2.67458343,3738.9,3737.4,3.30925188]
[1760232372458,0.001,3739.4,3737.6,0.6336]
[1760232372624,0.001,3739.4,3738.2,0.6336]
[1760232372994,0.001,3739.4,3738.0,0.6336]
[1760232373147,0.001,3739.4,3737.8,0.6336]
[1760232373479,0.001,3739.4,3738.4,0.6336]
[1760232373683,0.001,3739.4,3738.6,0.6336]
[1760232374253,0.001,3739.4,3738.8,0.6336]
[1760232374651,1.92,3739.0,3738.7,0.4653]
[1760232374851,0.001,3739.4,3738.8,0.4653]
[1760232375062,1.92,3739.2,3738.2,0.6336]
[1760232375270,1.92,3739.0,3738.2,1.0989]
[1760232375492,0.001,3739.4,3738.4,0.6336]
[1760232375660,1.92,3739.2,3738.4,0.6336]
[1760232375852,1.92,3739.3,3738.5,0.4653]
[1760232376054,0.001,3739.4,3738.6,0.6336]
[1760232376259,1.92,3739.3,3738.6,0.6336]
[1760232376744,1.921,3739.4,3738.6,2.67476907]
[1760232377005,0.001,3739.4,3738.8,0.6336]
[1760232377168,0.001,3739.4,3739.0,0.6336]
[1760232377676,0.001,3739.4,3739.1,0.4653]
[1760232378075,0.001,3739.4,3739.2,0.4653]
[1760232378458,0.001,3739.4,3739.3,1.0989]
[1760232378967,0.001,3739.4,3739.3,1.47624101]
[1760232379156,0.001,3739.4,3739.3,1.0989]
[1760232383366,0.001,3739.4,3739.3,3.77319732]
[1760232385299,0.001,3739.4,3739.3,3.90679732]
[1760232387182,0.001,3739.4,3739.3,3.77319732]
[1760232388035,0.001,3739.4,3739.3,3.13959732]
[1760232388219,0.001,3739.4,3739.3,4.35459188]
[1760232391703,0.001,3739.4,3739.3,1.04669456]
[1760232391956,0.001,3739.4,3739.3,0.4653]
[1760232392156,0.001,3739.4,3738.7,0.4406]
[1760232392342,1.92,3739.3,3738.7,0.4406]
[1760232392530,2.67436127,3739.3,3738.8,0.6336]
[1760232392740,0.001,3739.4,3738.9,0.4406]
[1760232392921,1.92,3739.2,3737.9,0.002]
[1760232393122,0.001,3739.4,3738.4,0.4406]
[1760232393334,0.001,3739.4,3738.6,2.67478034]
[1760232393538,0.001,3739.4,3738.7,0.94513803]
[1760232393736,0.001,3739.4,3738.7,1.38573803]
[1760232393955,0.001,3739.4,3738.7,0.4406]
[1760232394148,4.59430428,3739.3,3738.7,0.4406]
[1760232394354,0.001,3739.4,3738.7,0.4406]
[1760232394933,1.921,3739.4,3738.7,0.4406]
[1760232395456,0.001,3739.4,3738.7,0.4406]
[1760232395673,1.92,3739.2,3738.8,0.6336]
[1760232395875,0.001,3739.4,3739.0,0.6336]
[1760232396268,0.001,3739.4,3738.9,0.4406]
[1760232396269,0.001,3739.4,3739.1,0.4406]
[1760232396469,1.921,3739.4,3739.1,0.4406]
[1760232396767,1.921,3739.4,3739.2,0.4406]
[1760232396768,0.001,3739.4,3739.2,0.4406]
[1760232396971,0.001,3739.4,3739.3,0.4406]
[1760232397356,0.001,3739.4,3739.3,1.0742]
[1760232397554,0.1346,3739.4,3739.3,1.0742]
[1760232398044,2.0546,3739.4,3738.9,0.6336]
[1760232398381,2.0546,3739.4,3738.3,0.002]
[1760232398382,0.1731,3739.3,3738.3,0.002]
[1760232398587,4.59494115,3738.4,3738.3,0.002]
[1760232398962,1.92,3738.4,3738.3,0.4426]
[1760232399689,1.92,3738.4,3738.3,1.0762]
[1760232400054,1.92,3738.4,3738.3,0.4426]
[1760232400373,1.92,3738.4,3738.3,0.002]
[1760232400554,1.92,3738.4,3738.3,0.4426]
[1760232400957,4.59494115,3738.4,3738.3,0.002]
[1760232402058,6.68388915,3738.4,3738.3,0.002]
[1760232402391,6.85638915,3738.4,3738.3,0.002]
[1760232402590,7.20716815,3738.4,3738.3,0.002]
[1760232402795,4.59494115,3738.4,3738.3,0.002]
[1760232402996,1.92,3738.4,3738.3,0.002]
[1760232403155,2.67474986,3738.7,3738.3,0.4426]
[1760232403360,2.67474986,3738.7,3738.4,0.4406]
[1760232403592,1.92,3738.5,3738.3,0.002]
[1760232404095,1.92,3738.6,3738.3,0.002]
[1760232404288,1.92,3738.6,3738.3,0.4426]
[1760232404477,2.67472979,3738.7,3738.3,0.4426]
[1760232404478,1.92,3739.0,3738.3,0.002]
[1760232404682,0.001,3739.2,3738.3,0.002]
[1760232404683,8.39355115,3738.4,3738.3,0.002]
[1760232404866,18.17028115,3738.4,3738.3,0.002]
[1760232405070,16.86692615,3738.4,3738.3,0.002]
[1760232405290,15.18876915,3738.4,3738.3,0.002]
[1760232405480,11.73643315,3738.4,3738.3,0.002]
[1760232405971,4.59494115,3738.4,3738.3,0.002]
[1760232406487,6.98283515,3738.4,3738.3,0.002]
[1760232406867,15.95151115,3738.4,3738.3,0.002]
[1760232407067,16.12521115,3738.4,3738.3,0.002]
[1760232407964,15.52850415,3738.4,3738.3,0.002]
[1760232408392,14.75500415,3738.4,3738.3,0.002]
[1760232408712,10.69046015,3738.4,3738.3,0.002]
[1760232408861,10.69046015,3738.4,3737.5,0.002]
[1760232408862,2.67551369,3737.6,3737.5,0.002]
[1760232409067,9.78844469,3737.6,3737.5,0.002]
[1760232409804,9.96634469,3737.6,3737.5,0.002]
[1760232409962,11.67215169,3737.6,3737.5,0.002]
[1760232410362,11.98574629,3737.6,3737.5,0.002]
[1760232410930,20.72261069,3737.6,3737.5,0.002]
[1760232411307,14.83133169,3737.6,3737.5,0.002]
[1760232412026,11.07598069,3737.6,3737.5,0.002]
[1760232412193,4.59551369,3737.6,3737.5,0.002]
[1760232412626,7.89285469,3737.6,3737.5,0.002]
[1760232413126,8.07075469,3737.6,3737.5,0.002]
[1760232413326,8.40825869,3737.6,3737.5,0.002]
[1760232413504,8.46835135,3737.6,3737.5,0.002]
[1760232413704,8.78194595,3737.6,3737.5,0.002]
[1760232414226,35.42510095,3737.6,3737.5,0.002]
[1760232414430,34.80618095,3737.6,3737.5,0.002]
[1760232414633,35.22593197,3737.6,3737.5,0.002]
[1760232414838,34.59233197,3737.6,3737.5,0.002]
[1760232415129,17.93407971,3737.6,3737.5,0.002]
[1760232415331,1.92,3737.5,3735.1,0.002]
[1760232415544,9.126107,3736.4,3735.1,0.002]
[1760232415699,2.67694394,3735.7,3735.1,0.002]
[1760232415898,0.1779,3736.8,3735.1,0.002]
[1760232416210,1.92,3735.9,3735.2,0.453]
[1760232416411,1.92,3736.0,3735.2,0.453]
[1760232416611,2.6767258,3736.0,3735.2,0.453]
[1760232416832,1.92,3735.8,3735.2,0.453]
[1760232417028,1.92,3736.1,3735.2,0.453]
[1760232417431,0.1779,3736.0,3735.1,0.002]
[1760232417603,0.1779,3736.9,3735.2,0.453]
[1760232417803,1.92,3735.8,3735.2,0.453]
[1760232418001,1.92,3736.1,3735.2,0.453]
[1760232418308,0.1779,3736.0,3735.1,0.002]
[1760232418507,2.67703436,3735.5,3735.1,0.002]
[1760232418708,2.67710183,3735.4,3735.1,0.002]
[1760232419132,1.92,3735.4,3735.1,0.002]
[1760232419535,1.92,3735.6,3735.1,0.002]
[1760232419841,1.92,3735.8,3735.2,0.453]
[1760232420036,2.0979,3736.7,3735.2,0.453]
[1760232420338,2.67669076,3736.0,3735.2,0.453]
[1760232420633,0.1336,3736.0,3735.3,0.7672]
[1760232420855,0.1336,3736.0,3735.6,2.67689274]
[1760232421015,0.1336,3736.0,3735.8,3.31037918]
[1760232421207,0.1336,3736.0,3735.9,0.453]
[1760232422202,0.1336,3736.0,3735.4,0.6336]
[1760232422407,0.1336,3735.7,3735.4,1.0866]
[1760232422724,0.1336,3735.7,3735.6,0.6336]
[1760232423108,0.1336,3735.7,3735.6,1.0866]
[1760232423505,0.1336,3735.7,3735.2,0.6336]
[1760232423741,1.92,3736.1,3735.2,1.0866]
[1760232423915,0.1336,3735.7,3735.4,3.3106856]
[1760232424117,0.1336,3735.7,3735.6,0.6336]
[1760232424510,0.1336,3735.7,3735.6,3.76354613]
[1760232424709,0.1336,3735.7,3735.6,1.0866]
[1760232425648,0.1336,3735.7,3735.2,1.0866]
[1760232425861,0.1336,3735.7,3735.3,0.453]
[1760232426045,2.67723281,3735.2,3735.1,0.002]
[1760232426230,4.59723281,3735.2,3735.1,0.002]
[1760232426429,4.78333281,3735.2,3735.1,0.002]
[1760232427344,14.56322781,3735.2,3735.1,0.002]
[1760232427554,14.98317411,3735.2,3735.1,0.002]
[1760232428121,25.47768511,3735.2,3735.1,0.002]
[1760232428327,23.79318511,3735.2,3735.1,0.002]
[1760232428522,5.20327911,3735.2,3735.1,0.002]
[1760232428752,8.46442711,3735.2,3735.1,0.002]
[1760232429148,5.20327911,3735.2,3735.1,0.002]
[1760232429388,12.90320711,3735.2,3735.1,0.002]
[1760232429554,5.20327911,3735.2,3735.1,0.002]
[1760232429762,6.78982281,3735.2,3735.1,0.002]
[1760232429971,4.59723281,3735.2,3735.1,0.002]
[1760232430126,7.72406081,3735.2,3735.1,0.002]
[1760232430530,7.22506081,3735.2,3735.1,0.002]
[1760232430731,1.92,3735.2,3735.1,0.002]
[1760232431066,13.24394381,3735.2,3735.1,0.002]
[1760232431558,6.87474481,3735.2,3735.1,0.002]
[1760232431959,4.59723281,3735.2,3735.1,0.002]
[1760232432825,1.92,3735.2,3735.1,0.002]
[1760232433032,0.1861,3736.1,3735.1,0.455]
[1760232433232,3.09643065,3736.3,3735.1,0.455]
[1760232433233,0.4199534,3736.3,3735.2,0.6336]
[1760232433653,1.92,3736.6,3735.3,3.13013402]
[1760232433854,1.92,3736.4,3735.3,0.453]
[1760232434058,2.67638646,3736.4,3735.3,0.453]
[1760232434270,2.67645279,3736.3,3735.3,0.453]
[1760232434534,2.67623277,3736.6,3735.3,0.453]
[1760232434535,2.67630119,3736.6,3735.5,0.6336]
[1760232434769,0.60662419,3736.9,3735.6,0.453]
[1760232434933,1.92,3736.5,3735.6,0.453]
[1760232435372,0.2232,3737.2,3735.6,0.453]
[1760232435373,0.1872,3737.5,3735.7,0.6336]
[1760232435574,0.1872,3737.5,3735.9,0.6336]
[1760232435779,0.33809266,3738.2,3736.1,0.6336]
[1760232435780,0.4197861,3737.7,3736.1,0.6336]
[1760232435987,0.3135946,3738.3,3736.2,1.3012]
[1760232436190,2.67517141,3738.1,3736.9,0.6336]
[1760232436395,0.1861,3738.5,3736.9,0.6336]
[1760232436396,2.67488686,3738.5,3737.1,0.6336]
[1760232436552,2.6748791,3738.5,3737.3,0.6336]
[1760232436747,2.67494963,3738.4,3737.3,0.6336]
[1760232436986,1.92,3738.2,3736.7,0.453]
[1760232437185,1.92,3737.7,3736.8,0.6336]
[1760232437749,2.67032068,3737.4,3736.8,0.6336]
[1760232438062,4.5956038,3737.5,3736.8,0.6336]
[1760232438273,2.145,3737.9,3733.1,0.002]
[1760232438445,1.92,3737.7,3736.3,0.6336]
[1760232438645,0.001,3737.9,3736.3,0.6336]
[1760232438888,0.001,3737.9,3736.5,0.6336]
[1760232439078,1.92,3737.5,3736.5,0.6336]
[1760232439273,1.92,3737.5,3736.7,0.6336]
[1760232439790,1.92,3737.1,3736.4,0.453]
[1760232439956,4.59544211,3737.7,3735.9,0.453]
[1760232440289,1.92,3736.8,3736.0,0.6336]
[1760232440998,1.92,3736.3,3735.4,0.453]
[1760232441277,2.67633711,3736.5,3735.5,0.6336]
[1760232441455,1.92,3736.3,3735.4,0.453]
[1760232441655,1.92,3736.3,3735.5,0.31301709]
[1760232441868,2.67643009,3736.4,3734.8,0.455]
[1760232442084,0.1907,3736.3,3734.8,0.455]
[1760232442252,0.1907,3736.3,3734.9,0.6336]
[1760232442448,1.92,3735.7,3734.9,0.6336]
[1760232443788,0.1907,3736.3,3734.8,0.002]
[1760232444085,1.92,3735.4,3734.8,0.002]
[1760232444417,5.99773281,3735.2,3734.8,0.002]
[1760232444681,25.60742081,3735.2,3734.8,0.002]
[1760232444892,18.11444681,3735.2,3734.8,0.002]
[1760232445046,15.24581181,3735.2,3734.8,0.002]
[1760232445559,14.10951009,3735.2,3734.8,0.002]
[1760232445769,2.67714281,3735.4,3734.8,0.002]
[1760232446076,2.67723281,3735.2,3734.8,0.002]
[1760232446960,14.21263981,3735.2,3734.8,0.002]
[1760232447193,7.72193281,3735.2,3734.8,0.002]
[1760232447658,4.59723281,3735.2,3734.8,0.002]
[1760232447859,4.78793281,3735.2,3734.8,0.002]
[1760232448055,4.59723281,3735.2,3734.8,0.002]
[1760232448277,1.92,3735.2,3734.8,0.002]
[1760232448473,2.67688294,3735.7,3734.8,0.002]
[1760232448710,1.92,3735.6,3734.8,0.4759]
[1760232448892,2.67695675,3735.6,3734.8,0.4759]
[1760232449073,1.92,3735.9,3734.8,0.4759]
[1760232449270,2.67680282,3735.8,3734.8,0.002]
[1760232449473,1.92,3735.6,3734.9,0.4739]
[1760232449888,1.92,3735.5,3734.9,0.4739]
[1760232450295,1.92,3735.6,3734.9,0.4739]
[1760232451007,1.92,3736.0,3735.2,0.4739]
[1760232451214,1.92,3735.8,3735.2,0.4739]
[1760232451885,2.67676811,3735.9,3735.1,0.002]
[1760232452088,1.92,3736.0,3735.1,0.002]
[1760232452089,1.92,3735.4,3735.1,0.002]
[1760232452603,1.92,3735.2,3735.1,0.002]
[1760232453002,10.11032881,3735.2,3735.1,0.002]
[1760232453210,2.86793281,3735.2,3735.1,0.002]
[1760232453380,2.67723281,3735.2,3735.1,0.002]
[1760232453586,16.24068081,3735.2,3735.1,0.002]
[1760232453905,16.09820841,3735.2,3735.1,0.002]
[1760232454104,21.76498141,3735.2,3735.1,0.002]
[1760232454492,18.21431241,3735.2,3735.1,0.002]
[1760232454716,18.63430514,3735.2,3735.1,0.002]
[1760232455110,11.55992314,3735.2,3735.1,0.002]
[1760232455696,10.96632854,3735.2,3735.1,0.002]
[1760232456113,12.00933254,3735.2,3735.1,0.002]
[1760232456306,11.53333254,3735.2,3735.1,0.002]
[1760232457189,18.50901554,3735.2,3735.1,0.002]
[1760232457823,17.84217854,3735.2,3735.1,0.002]
[1760232458004,15.58435454,3735.2,3735.1,0.002]
[1760232458203,15.58430254,3735.2,3735.1,0.002]
[1760232458731,2.67751954,3734.8,3734.7,0.002]
[1760232459030,47.63307891,3734.4,3733.9,0.002]
[1760232459526,47.82377891,3734.4,3733.9,0.002]
[1760232459732,46.25645191,3734.4,3733.9,0.002]
[1760232460116,47.82377891,3734.4,3733.9,0.002]
[1760232460628,7.13925434,3734.4,3733.9,0.002]
[1760232461219,17.07318634,3734.4,3733.9,0.002]
[1760232461417,30.76014617,3734.4,3733.9,0.002]
[1760232462230,46.25279617,3734.4,3733.9,0.002]
[1760232462933,9.6996936,3734.4,3733.9,0.002]
[1760232463240,22.384328,3734.4,3733.9,0.002]
[1760232463435,21.251424,3734.4,3733.9,0.002]
[1760232463931,13.11739934,3734.4,3733.9,0.002]
[1760232464094,13.53748085,3734.4,3733.9,0.002]
[1760232464292,19.14997485,3734.4,3733.9,0.002]
[1760232464800,12.26779185,3734.4,3733.9,0.002]
[1760232465225,17.92989585,3734.4,3733.9,0.002]
[1760232465612,16.63973985,3734.4,3733.9,0.002]
[1760232465813,15.47800985,3734.4,3733.9,0.002]
[1760232466319,30.87921285,3734.4,3733.9,0.002]
[1760232466526,28.15360285,3734.4,3733.9,0.002]
[1760232466830,26.23960285,3734.4,3733.9,0.002]
[1760232467239,26.39055685,3734.4,3733.9,0.002]
[1760232467932,25.72505685,3734.4,3733.9,0.002]
[1760232468108,24.61301751,3734.4,3733.9,0.002]
[1760232468309,20.63852011,3734.4,3733.9,0.002]
[1760232468844,8.76704385,3734.4,3733.9,0.002]
[1760232469199,15.23653885,3734.4,3733.9,0.002]
[1760232469404,4.59780634,3734.4,3733.9,0.002]
[1760232469850,1.92,3734.4,3733.9,0.002]
[1760232470049,5.62867834,3734.4,3733.9,0.002]
[1760232470204,7.54867834,3734.4,3733.9,0.002]
[1760232470404,2.67780634,3734.4,3733.9,0.002]
[1760232471536,0.1907,3735.3,3734.0,0.463]
[1760232471752,0.1907,3735.6,3734.3,0.465]
[1760232472038,2.67736227,3735.1,3734.3,0.465]
[1760232472206,2.67723643,3735.2,3734.3,0.465]
[1760232472406,2.67723643,3735.2,3734.4,0.33797948]
[1760232472606,0.1336,3734.4,3734.3,1.0986]
[1760232472903,0.1336,3734.4,3734.3,0.002]
[1760232473103,4.73140634,3734.4,3734.3,0.002]
[1760232473903,2.0536,3734.4,3734.3,0.002]
[1760232475041,4.73140634,3734.4,3734.3,0.002]
[1760232475229,18.36468434,3734.4,3734.3,0.002]
[1760232475433,7.39817434,3734.4,3734.3,0.002]
[1760232475740,7.13981134,3734.4,3734.3,0.002]
[1760232476243,4.73240634,3734.4,3734.3,0.002]
[1760232476440,4.59880634,3734.4,3734.3,0.002]
[1760232476623,13.21368434,3734.4,3734.3,0.002]
[1760232477010,7.81250634,3734.4,3734.3,0.002]
[1760232477337,1.921,3734.4,3734.3,0.002]
[1760232477744,4.59880634,3734.4,3734.3,0.002]
[1760232478236,1.921,3734.4,3734.3,0.002]
[1760232478646,4.59880634,3734.4,3734.3,0.002]
[1760232478941,11.48430434,3734.4,3734.3,0.002]
[1760232479151,12.1359916,3734.4,3734.3,0.002]
[1760232479452,12.5560845,3734.4,3734.3,0.002]
[1760232479606,12.1359916,3734.4,3734.3,0.002]
[1760232479812,36.0747936,3734.4,3733.5,0.002]
[1760232480144,19.29227011,3733.6,3733.5,0.002]
[1760232480342,16.56650137,3733.6,3733.5,0.002]
[1760232480543,16.75690137,3733.6,3733.5,0.002]
[1760232480915,23.31883637,3733.6,3733.5,0.002]
[1760232481631,17.72697237,3733.6,3733.5,0.002]
[1760232481987,29.72704809,3733.2,3733.1,1e-08]
[1760232482244,2.5536,3733.1,3730.1,0.4482]
[1760232482461,1.92,3732.3,3730.1,0.4482]
[1760232482663,13.555518,3732.4,3730.1,0.4482]
[1760232482664,2.68012111,3731.2,3730.3,0.6336]
[1760232482815,1.92,3731.3,3730.2,3.31442075]
[1760232483156,1.92,3730.8,3730.1,0.4482]
[1760232483363,2.68025854,3731.0,3730.1,0.4482]
[1760232483518,2.113,3731.4,3730.1,0.4482]
[1760232483714,1.92,3731.0,3730.1,0.4482]
[1760232484009,0.193,3731.4,3730.1,0.4482]
[1760232484246,1.92,3731.2,3730.1,0.4482]
[1760232484450,1.92,3730.8,3730.1,0.4482]
[1760232484741,1.92,3730.6,3729.6,0.4482]
[1760232485112,2.113,3731.0,3729.7,0.31295109]
[1760232485312,1.92,3730.8,3729.7,2.68116701]
[1760232485788,0.42039296,3731.6,3729.8,1.0818]
[1760232486082,0.42039296,3731.6,3730.2,0.6336]
[1760232486261,2.1464,3731.7,3730.5,2.68060494]
[1760232486462,1.92,3731.5,3730.6,0.33490049]
[1760232486809,2.34035361,3732.1,3730.7,0.4482]
[1760232486951,0.2257,3733.0,3730.7,0.4482]
[1760232487155,0.42029769,3733.2,3732.2,0.6336]
[1760232487404,0.42029769,3733.2,3732.5,2.67911334]
[1760232487570,2.67830838,3733.7,3732.6,2.67909421]
[1760232487750,0.42013707,3734.1,3732.7,0.4482]
[1760232488086,0.3145946,3734.4,3732.7,0.4482]
[1760232488087,0.1939,3734.0,3732.7,0.4482]
[1760232488288,1.92,3733.8,3732.8,0.6336]
[1760232488490,4.59823686,3733.8,3732.8,0.6336]
[1760232488787,13.03527257,3735.3,3732.9,0.4482]
[1760232488989,19.893357,3734.2,3732.3,0.4482]
[1760232489191,2.67853557,3733.4,3732.3,0.78298544]
[1760232489395,2.67861246,3733.3,3732.3,0.4482]
[1760232489765,1.92,3733.2,3732.3,0.4482]
[1760232490164,6.275861,3733.9,3732.6,2.67905784]
[1760232490363,1.92,3733.6,3732.6,2.67905784]
[1760232490564,1.92,3733.6,3732.7,0.77946578]
[1760232490895,2.678382,3733.6,3732.7,0.77946578]
[1760232491095,0.1818,3734.1,3732.7,0.77946578]
[1760232491390,0.1818,3734.1,3732.7,0.4482]
[1760232491597,0.1336,3732.7,3732.2,0.6684]
[1760232491761,0.1336,3732.2,3731.8,0.6336]
[1760232491976,2.1574,3733.8,3732.2,2.67935995]
[1760232492164,1.92,3732.8,3732.1,0.2202]
[1760232492372,0.1336,3732.1,3731.9,0.6336]
[1760232492575,1.92,3733.2,3731.9,0.4482]
[1760232492799,0.1336,3731.9,3731.4,0.4482]
[1760232492960,1.92,3732.4,3732.3,0.002]
[1760232493159,9.23421823,3732.4,3732.3,0.002]
[1760232493362,9.41601823,3732.4,3732.3,0.002]
[1760232493972,9.71654423,3732.4,3732.3,0.002]
[1760232494173,6.86833123,3732.4,3732.3,0.002]
[1760232494863,1.92,3732.4,3732.3,0.002]
[1760232495205,11.76977123,3732.4,3732.3,0.002]
[1760232495407,8.90873,3732.4,3732.3,0.002]
[1760232495565,11.58797123,3732.4,3732.3,0.002]
[1760232495764,4.59924123,3732.4,3732.3,0.002]
[1760232496182,1.92,3732.4,3732.3,0.002]
[1760232496402,2.67896888,3732.8,3732.3,0.002]
[1760232496770,1.92,3733.1,3732.3,0.002]
[1760232496967,0.1818,3733.5,3732.4,0.4482]
[1760232497279,3.859433,3733.4,3732.4,0.4482]
[1760232497603,2.67874185,3733.1,3732.4,0.78318499]
[1760232497815,2.1018,3733.5,3732.4,0.78318499]
[1760232498164,2.67853133,3733.4,3732.4,3.1274321]
[1760232498371,0.1818,3733.5,3732.3,0.002]
[1760232498564,1.92,3733.0,3732.3,0.002]
[1760232498769,1.92,3732.6,3732.3,0.002]
[1760232499007,2.67924123,3732.4,3732.3,0.002]
[1760232499210,11.67868223,3732.4,3732.3,0.002]
[1760232499394,9.60422723,3732.4,3732.3,0.002]
[1760232499904,8.77522723,3732.4,3732.3,0.002]
[1760232500819,9.42691449,3732.4,3732.3,0.002]
[1760232501316,20.33460349,3732.4,3732.3,0.002]
[1760232501482,18.15559049,3732.4,3732.3,0.002]
[1760232502219,28.29176549,3732.4,3732.3,0.002]
[1760232502414,22.28638749,3732.4,3732.3,0.002]
[1760232502616,16.76568849,3732.4,3732.3,0.002]
[1760232502789,5.09463583,3732.4,3732.3,0.002]
[1760232503116,4.78104123,3732.4,3732.3,0.002]
[1760232503416,11.84857223,3732.4,3732.3,0.002]
[1760232503920,11.41259289,3732.4,3732.3,0.002]
[1760232504116,35.11913389,3732.4,3732.3,0.002]
[1760232504284,35.43272849,3732.4,3732.3,0.002]
[1760232504486,30.89500249,3732.4,3732.3,0.002]
[1760232505183,2.6795284,3732.0,3731.9,1e-08]
[1760232505383,29.68762166,3732.0,3731.9,1e-08]
[1760232505618,31.21208272,3732.0,3731.9,1e-08]
[1760232505801,26.55715169,3732.0,3731.9,1e-08]
[1760232506206,30.74075575,3732.0,3731.9,1e-08]
[1760232506399,28.17491569,3732.0,3731.9,1e-08]
[1760232506598,26.18113569,3732.0,3731.9,1e-08]
[1760232507023,16.98113869,3732.0,3731.9,1e-08]
[1760232507329,19.20240469,3732.0,3731.9,1e-08]
[1760232507487,18.55071743,3732.0,3731.9,1e-08]
[1760232508039,10.06805643,3732.0,3731.9,1e-08]
[1760232508344,3.28172243,3732.0,3731.9,1e-08]
[1760232508628,3.09992243,3732.0,3731.9,1e-08]
[1760232508852,28.82235443,3732.0,3731.9,1e-08]
[1760232509137,16.28436709,3732.0,3731.9,1e-08]
[1760232509313,17.96000609,3732.0,3731.9,1e-08]
[1760232509514,15.58736309,3732.0,3731.9,1e-08]
[1760232509710,13.54755006,3732.0,3731.9,1e-08]
[1760232509943,13.2094574,3732.0,3731.9,1e-08]
[1760232510099,7.0873964,3732.0,3731.9,1e-08]
[1760232510425,4.7813284,3732.0,3731.9,1e-08]
[1760232510642,12.8348894,3732.0,3731.9,1e-08]
[1760232510844,9.7896594,3732.0,3731.9,1e-08]
[1760232511250,1.92,3732.0,3731.9,1e-08]
[1760232511407,7.5123614,3732.0,3731.9,1e-08]
[1760232512131,7.1138694,3732.0,3731.9,1e-08]
[1760232512335,1.92,3732.0,3731.9,1e-08]
[1760232512505,6.8341914,3732.0,3731.9,1e-08]
[1760232512910,7.0159914,3732.0,3731.9,1e-08]
[1760232513839,24.47919066,3732.0,3731.9,1e-08]
[1760232514204,23.57995366,3732.0,3731.9,1e-08]
[1760232514848,17.93614366,3732.0,3731.9,1e-08]
[1760232515026,16.88144166,3732.0,3731.9,1e-08]
[1760232515234,17.30181682,3732.0,3731.9,1e-08]
[1760232515720,17.92611282,3732.0,3731.9,1e-08]
[1760232515942,5.33349816,3732.0,3731.9,1e-08]
[1760232516184,13.08697956,3732.0,3731.9,1e-08]
[1760232516545,13.73866682,3732.0,3731.9,1e-08]
[1760232516879,27.02721582,3732.0,3731.9,1e-08]
[1760232517473,19.14305282,3732.0,3731.9,1e-08]
[1760232517888,22.45588982,3732.0,3731.9,1e-08]
[1760232518970,22.27693882,3732.0,3731.9,1e-08]
[1760232519170,9.14493556,3732.0,3731.9,1e-08]
[1760232519528,9.14493556,3732.0,3731.1,0.002]
[1760232519529,30.0,3731.8,3731.1,1e-08]
[1760232519727,1.92,3729.2,3728.6,0.002]
[1760232519939,1.92,3728.7,3728.6,0.002]
[1760232520149,4.60189985,3728.7,3728.6,0.002]
[1760232520949,1.92,3728.7,3728.6,0.002]
[1760232521129,4.60189985,3728.7,3728.6,0.002]
[1760232521330,4.80299985,3728.7,3728.6,0.002]
[1760232521548,13.24069085,3728.7,3728.6,0.002]
[1760232522363,32.68211565,3728.4,3726.0,0.6725]
[1760232522561,35.54931025,3728.4,3726.0,0.6725]
[1760232522739,35.74851025,3728.4,3726.0,0.6725]
[1760232522936,36.08660291,3728.4,3726.0,0.4523]
[1760232523138,2.68333914,3726.7,3725.9,0.002]
[1760232523453,8.40165514,3726.7,3725.9,0.002]
[1760232523637,8.60085514,3726.7,3725.9,0.002]
[1760232524250,22.94398314,3726.7,3725.9,0.002]
[1760232524463,22.48791014,3726.7,3725.9,0.002]
[1760232524664,18.80907214,3726.7,3725.9,0.002]
[1760232525268,25.60400514,3726.7,3725.9,0.002]
[1760232525472,24.28352214,3726.7,3725.9,0.002]
[1760232525771,19.00118514,3726.7,3725.9,0.002]
[1760232526277,4.80253914,3726.7,3725.9,0.002]
[1760232526571,10.65351114,3726.7,3725.9,0.002]
[1760232526869,2.1192,3726.7,3725.9,0.002]
[1760232527091,4.80253914,3726.7,3725.9,0.002]
[1760232527762,23.67005714,3726.7,3725.9,0.002]
[1760232528075,17.90706674,3726.7,3725.9,0.002]
[1760232528241,15.94124074,3726.7,3725.9,0.002]
[1760232528770,17.60847074,3726.7,3726.2,0.002]
[1760232529275,16.46560774,3726.7,3726.2,0.002]
[1760232529442,16.8037004,3726.7,3726.2,0.002]
[1760232529870,35.4542264,3726.7,3726.2,0.002]
[1760232530572,14.33947014,3726.7,3726.2,0.002]
[1760232530953,13.75024114,3726.7,3726.2,0.002]
[1760232531288,8.31524614,3726.7,3726.2,0.002]